bitfinex/quotes_SOLUSD_20250508
["timestamp","ask_amount","ask_price","bid_price","bid_amount"]
[1746741260180,6.23558022,160.37,160.34,26.78524736]
[1746741260380,18.64964886,160.36,160.34,26.78524736]
[1746741260776,18.64964886,160.36,160.33,28.45174736]
[1746741261275,6.23558022,160.37,160.34,26.78524736]
[1746741262096,24.88522908,160.37,160.36,26.78524736]
[1746741262401,24.88522908,160.37,160.35,26.78524736]
[1746741262777,24.88522908,160.37,160.34,26.78524736]
[1746741263389,24.88522908,160.37,160.33,1.6665]
[1746741263607,40.47417963,160.37,160.33,1.6665]
[1746741263896,40.47417963,160.37,160.34,26.78524736]
[1746741265574,40.47417963,160.37,160.35,26.78524736]
[1746741265879,40.47417963,160.37,160.33,1.6665]
[1746741266082,40.47417963,160.37,160.34,26.78524736]
[1746741266476,40.47417963,160.37,160.33,1.6665]
[1746741266680,40.47417963,160.37,160.34,26.78524736]
[1746741267277,40.47417963,160.37,160.33,1.6665]
[1746741267481,40.47417963,160.37,160.34,26.78524736]
[1746741267898,18.64964886,160.34,160.33,1.6665]
[1746741268206,18.79181043,160.34,160.33,1.6665]
[1746741268575,25.02855734,160.34,160.33,1.6665]
[1746741269195,6.23674691,160.34,160.33,28.45174736]
[1746741269370,6.23596906,160.36,160.33,28.45174736]
[1746741269695,6.23596906,160.36,160.35,26.78524736]
[1746741270202,6.23596906,160.36,160.32,0.2]
[1746741270506,6.23596906,160.36,160.34,26.78524736]
[1746741270702,6.23596906,160.36,160.32,0.2]
[1746741270891,6.23596906,160.36,160.33,26.78524736]
[1746741271202,6.23596906,160.36,160.34,26.78524736]
[1746741271599,21.82589173,160.36,160.32,0.2]
[1746741271904,21.82589173,160.36,160.34,26.78524736]
[1746741273304,21.82589173,160.36,160.32,0.2]
[1746741273600,21.82589173,160.36,160.33,26.78524736]
[1746741274015,21.82589173,160.36,160.35,26.78524736]
[1746741274696,21.82589173,160.36,160.34,26.78524736]
[1746741275083,6.23596906,160.36,160.35,26.78524736]
[1746741275411,6.23596906,160.36,160.32,0.2]
[1746741275707,6.23596906,160.36,160.34,26.78524736]
[1746741275909,21.82477557,160.37,160.34,26.78524736]
[1746741276994,21.82477557,160.37,160.35,26.78524736]
[1746741277195,21.82477557,160.37,160.34,26.78524736]
[1746741277794,21.82477557,160.37,160.35,26.78524736]
[1746741278401,21.82477557,160.37,160.32,0.2]
[1746741278816,21.82477557,160.37,160.35,26.78524736]
[1746741279120,21.82477557,160.37,160.34,26.78524736]
[1746741279407,21.82477557,160.37,160.35,26.78524736]
[1746741281694,21.82477557,160.37,160.34,26.78524736]
[1746741283692,21.82477557,160.37,160.32,0.2]
[1746741284020,21.82477557,160.37,160.34,26.78524736]
[1746741284816,21.82477557,160.37,160.32,0.2]
[1746741285110,21.82477557,160.37,160.34,26.78524736]
[1746741286505,21.82477557,160.37,160.33,26.78524736]
[1746741287895,21.82477557,160.37,160.32,0.2]
[1746741288094,21.82477557,160.37,160.33,26.78524736]
[1746741292124,21.82477557,160.37,160.34,26.78524736]
[1746741292300,21.82477557,160.37,160.32,0.2]
[1746741292501,21.82477557,160.37,160.34,26.78524736]
[1746741292997,21.82477557,160.37,160.32,0.2]
[1746741293227,21.82477557,160.37,160.34,26.78524736]
[1746741293808,21.82477557,160.37,160.33,16.80592887]
[1746741295212,18.64964886,160.36,160.32,0.2]
[1746741295532,18.64964886,160.36,160.32,17.00592887]
[1746741296130,18.64964886,160.36,160.33,16.80592887]
[1746741296335,47.06477557,160.37,160.35,16.80592887]
[1746741297516,47.06477557,160.37,160.32,0.2]
[1746741297715,47.06477557,160.37,160.35,16.80592887]
[1746741298740,47.06477557,160.37,160.32,0.2]
[1746741299119,47.06477557,160.37,160.34,16.80592887]
[1746741299522,47.06477557,160.37,160.35,16.80592887]
[1746741300657,21.82477557,160.37,160.35,16.80592887]
[1746741301141,21.82477557,160.37,160.32,0.2]
[1746741301556,21.82477557,160.37,160.35,16.80592887]
[1746741301720,15.58919535,160.37,160.35,16.80592887]
[1746741303322,6.23519142,160.38,160.36,16.80592887]
[1746741303528,6.23519142,160.38,160.37,16.80592887]
[1746741304726,6.23441396,160.4,160.37,16.80592887]
[1746741304928,6.23441396,160.4,160.39,16.80592887]
[1746741305435,6.23324814,160.43,160.39,33.61185774]
[1746741305643,6.23297369,160.44,160.42,16.80592887]
[1746741305847,31.39258086,160.45,160.4,16.80592887]
[1746741306048,31.39258086,160.45,160.44,16.80592887]
[1746741306835,233.6,160.5,160.44,16.80592887]
[1746741307042,239.83052959,160.5,160.49,16.80592887]
[1746741307245,6.23052959,160.5,160.49,16.80592887]
[1746741307941,6.23052959,160.5,160.49,26.83457547]
[1746741308344,6.2297533,160.52,160.49,26.83457547]
[1746741308551,6.2297533,160.52,160.51,26.83457547]
[1746741308754,36.2297533,160.52,160.51,26.83457547]
[1746741308928,30.0,160.52,160.51,26.83457547]
[1746741309135,6.22781341,160.57,160.51,26.83457547]
[1746741309359,6.2275168,160.58,160.56,26.83457547]
[1746741309545,31.36714409,160.59,160.57,26.83457547]
[1746741309745,9.50642836,160.61,160.58,26.83457547]
[1746741309946,9.50642836,160.61,160.6,26.83457547]
[1746741310143,39.50642836,160.61,160.6,26.83457547]
[1746741310338,9.50642836,160.61,160.6,26.83457547]
[1746741310659,2.22124478,160.63,160.62,26.0]
[1746741310829,20.71251305,160.65,160.62,79.66915094]
[1746741311033,20.71251305,160.65,160.64,53.66915094]
[1746741311268,8.52530433,160.67,160.64,53.66915094]
[1746741311435,8.52530433,160.67,160.66,52.83457547]
[1746741311636,57.03857017,160.7,160.66,52.83457547]
[1746741311834,48.90226581,160.7,160.69,52.83457547]
[1746741312041,35.94155059,160.73,160.7,6.22277535]
[1746741312342,25.1,160.82,160.7,6.22277535]
[1746741312343,9.63062929,160.77,160.72,79.66915094]
[1746741312543,9.63062929,160.77,160.76,26.83457547]
[1746741313105,9.63062929,160.77,160.76,52.83457547]
[1746741314052,9.63062929,160.77,160.76,26.83457547]
[1746741314447,9.63062929,160.77,160.76,52.83457547]
[1746741315648,15.85069522,160.77,160.69,50.0]
[1746741315964,15.85069522,160.77,160.72,26.83457547]
[1746741316138,15.85069522,160.77,160.68,26.0]
[1746741316139,42.68527069,160.77,160.68,26.0]
[1746741316462,42.68527069,160.77,160.71,26.83457547]
[1746741316763,33.0546414,160.77,160.71,26.83457547]
[1746741316976,26.83457547,160.76,160.7,26.83457547]
[1746741317151,26.83457547,160.76,160.65,7.79292621]
[1746741317470,18.64964886,160.75,160.69,26.83457547]
[1746741317776,26.83457547,160.76,160.7,26.83457547]
[1746741318103,6.22006593,160.77,160.74,26.83457547]
[1746741318266,15.54744125,160.8,160.75,26.83457547]
[1746741318267,6.21929224,160.79,160.75,26.83457547]
[1746741319646,25.04,160.8,160.76,26.83457547]
[1746741319849,25.04,160.8,160.79,26.83457547]
[1746741320074,6.21890547,160.8,160.71,50.0]
[1746741320383,25.22,160.82,160.79,26.83457547]
[1746741320546,6.21814863,160.82,160.79,26.83457547]
[1746741320751,6.21735886,160.84,160.8,26.83457547]
[1746741322460,33.05116132,160.86,160.81,26.83457547]
[1746741322884,48.59262594,160.86,160.8,26.83457547]
[1746741323090,26.83457547,160.84,160.78,26.83457547]
[1746741323259,18.64964886,160.85,160.76,26.83457547]
[1746741323588,26.83457547,160.82,160.76,26.83457547]
[1746741324155,41.23704974,160.85,160.76,26.83457547]
[1746741324370,26.83457547,160.82,160.76,26.83457547]
[1746741324574,41.23704974,160.85,160.74,26.83457547]
[1746741324575,26.83457547,160.8,160.74,26.83457547]
[1746741324873,21.77429388,160.74,160.69,26.83457547]
[1746741325086,21.77429388,160.74,160.68,26.83457547]
[1746741325773,62.3717497,160.74,160.68,40.59745582]
[1746741326301,62.3717497,160.74,160.67,40.59745582]
[1746741326302,40.59745582,160.73,160.67,40.59745582]
[1746741326500,21.77700347,160.72,160.65,40.59745582]
[1746741326679,59.24710468,160.7,160.64,51.81255099]
[1746741326879,40.59745582,160.67,160.64,9.60419517]
[1746741327092,18.64964886,160.7,160.64,9.60419517]
[1746741327093,40.59745582,160.66,160.64,9.60419517]
[1746741327491,40.59745582,160.65,160.64,9.60419517]
[1746741327993,18.64964886,160.7,160.6,40.59745582]
[1746741328198,24.96,160.71,160.63,40.59745582]
[1746741328373,43.64964886,160.72,160.64,40.59745582]
[1746741328574,43.64964886,160.72,160.58,1.5928]
[1746741328575,24.94,160.71,160.67,40.59745582]
[1746741328771,24.94,160.71,160.68,40.59745582]
[1746741329203,24.94,160.71,160.69,40.59745582]
[1746741329377,40.59745582,160.75,160.69,26.0]
[1746741329582,24.94,160.75,160.71,40.59745582]
[1746741330702,24.94,160.75,160.7,6.22275101]
[1746741330703,24.94,160.75,160.73,40.59745582]
[1746741331807,24.94,160.75,160.72,40.59745582]
[1746741332603,40.59745582,160.74,160.69,40.59745582]
[1746741332779,31.16092442,160.75,160.7,40.59745582]
[1746741332978,24.94,160.75,160.72,40.59745582]
[1746741333189,31.16098514,160.75,160.72,40.59745582]
[1746741333506,31.16098514,160.75,160.73,40.59745582]
[1746741333507,24.94,160.75,160.73,40.59745582]
[1746741334002,31.16097193,160.75,160.73,40.59745582]
[1746741334904,6.22097193,160.75,160.73,40.59745582]
[1746741335411,6.22006593,160.77,160.73,40.59745582]
[1746741335592,6.22006593,160.77,160.74,40.59745582]
[1746741335784,6.22006593,160.77,160.75,40.59745582]
[1746741336103,31.21969707,160.78,160.75,40.59745582]
[1746741337777,31.21969707,160.78,160.73,40.59745582]
[1746741337981,31.21969707,160.78,160.73,66.59745582]
[1746741339418,31.21969707,160.78,160.73,26.0]
[1746741339624,31.21969707,160.78,160.73,66.59745582]
[1746741339923,31.21969707,160.78,160.74,40.59745582]
[1746741344007,31.21969707,160.78,160.75,40.59745582]
[1746741345113,6.21935456,160.79,160.71,6.22210473]
[1746741345312,6.21935456,160.79,160.74,40.59745582]
[1746741346225,6.21890547,160.8,160.74,40.59745582]
[1746741346601,46.81636129,160.8,160.74,40.59745582]
[1746741347121,6.21890547,160.8,160.74,40.59745582]
[1746741347288,46.81636129,160.8,160.74,40.59745582]
[1746741347700,32.96753237,160.8,160.74,26.7486269]
[1746741348991,32.96753237,160.8,160.75,26.0]
[1746741349190,6.21890547,160.8,160.75,26.0]
[1746741349993,32.96753237,160.8,160.75,26.0]
[1746741350906,6.21890547,160.8,160.75,26.0]
[1746741351091,32.96753237,160.8,160.75,26.0]
[1746741352100,6.21890547,160.8,160.75,26.0]
[1746741352295,6.21890547,160.8,160.75,52.7486269]
[1746741353507,6.21890547,160.8,160.76,26.7486269]
[1746741353916,6.21813207,160.82,160.78,26.7486269]
[1746741354110,6.21813207,160.82,160.79,52.7486269]
[1746741354617,6.21735886,160.84,160.79,52.7486269]
[1746741355725,32.96598576,160.84,160.79,26.0]
[1746741356503,26.7486269,160.83,160.79,26.0]
[1746741356829,6.21735886,160.84,160.79,26.0]
[1746741357002,32.96598576,160.84,160.79,26.0]
[1746741357197,6.21697233,160.85,160.79,26.0]
[1746741357397,6.21697233,160.85,160.79,27.5437]
[1746741357608,21.75940316,160.85,160.79,1.5437]
[1746741357813,26.7486269,160.83,160.79,1.5437]
[1746741358152,26.7486269,160.82,160.79,1.5437]
[1746741358321,26.7486269,160.83,160.79,1.5437]
[1746741358824,6.21813207,160.82,160.79,1.5437]
[1746741360126,6.11875233,160.82,160.79,1.5437]
[1746741362204,6.21735886,160.84,160.79,1.5437]
[1746741362523,15.54243083,160.85,160.79,1.5437]
[1746741362524,57.60521275,160.86,160.81,26.0]
[1746741363111,6.21626633,160.87,160.84,26.7486269]
[1746741363801,6.21594001,160.88,160.84,26.7486269]
[1746741364226,232.96,160.94,160.84,26.0]
[1746741364400,6.21388181,160.93,160.88,52.7486269]
[1746741364729,24.62,160.93,160.89,26.7486269]
[1746741365120,26.7486269,160.97,160.91,26.0]
[1746741365434,40.14853822,161.0,160.93,26.7486269]
[1746741365733,18.64964886,160.99,160.94,26.7486269]
[1746741366110,6.21002297,161.03,160.98,52.7486269]
[1746741366509,6.21002297,161.03,160.98,26.0]
[1746741366812,6.20886626,161.06,160.99,26.7486269]
[1746741367121,26.7486269,161.05,160.98,31.10989425]
[1746741367323,6.20886626,161.06,160.98,31.10989425]
[1746741367524,6.20886626,161.06,161.0,26.7486269]
[1746741368028,6.20886626,161.06,160.98,37.32174225]
[1746741368231,32.95749316,161.06,161.0,26.7486269]
[1746741368432,32.95749316,161.06,160.98,37.32174225]
[1746741368625,32.95749316,161.06,161.0,26.7486269]
[1746741369004,26.7486269,161.08,161.03,26.7486269]
[1746741369230,49.32,161.1,161.04,26.0]
[1746741369520,51.4886269,161.1,161.04,52.7486269]
[1746741369936,30.94738971,161.1,161.01,6.4821]
[1746741370110,57.69601661,161.1,161.04,52.7486269]
[1746741370299,57.69601661,161.1,161.05,26.7486269]
[1746741370504,30.94738971,161.1,161.05,26.7486269]
[1746741370707,57.69601661,161.1,161.05,26.7486269]
[1746741370913,57.69601661,161.1,161.04,52.7486269]
[1746741371117,30.94738971,161.1,161.03,26.7486269]
[1746741371603,18.64964886,161.08,161.01,32.4821]
[1746741371923,18.64964886,161.08,161.0,26.7486269]
[1746741371924,6.20925178,161.05,161.0,26.7486269]
[1746741372226,6.20925178,161.05,160.97,1.6241]
[1746741372227,26.7486269,161.01,160.97,1.6241]
[1746741372402,26.7486269,161.0,160.94,26.7486269]
[1746741372606,26.7486269,160.98,160.92,1.653]
[1746741372803,26.7486269,160.96,160.92,1.653]
[1746741373020,26.7486269,160.94,160.88,26.7486269]
[1746741373236,18.64964886,160.99,160.89,26.7486269]
[1746741373427,26.7486269,160.95,160.89,26.7486269]
[1746741373807,18.64964886,160.99,160.89,26.7486269]
[1746741374016,26.7486269,160.95,160.89,26.7486269]
[1746741374906,26.7486269,160.94,160.87,1.653]
[1746741375231,26.7486269,160.94,160.83,6.4111]
[1746741375232,43.18964886,160.93,160.83,6.4111]
[1746741375441,43.18964886,160.93,160.84,26.7486269]
[1746741375630,26.7486269,160.9,160.84,26.7486269]
[1746741375825,40.51681,160.91,160.85,40.51681]
[1746741376023,24.86490019,160.9,160.85,40.51681]
[1746741376511,65.38171019,160.9,160.85,40.51681]
[1746741376702,24.86490019,160.9,160.85,40.51681]
[1746741378039,24.86490019,160.9,160.86,40.51681]
[1746741378237,24.54,160.9,160.87,40.51681]
[1746741378549,24.54,160.9,160.88,40.51681]
[1746741378756,18.64964886,160.92,160.88,40.51681]
[1746741378926,30.7535649,160.94,160.9,40.51681]
[1746741379244,24.54,160.94,160.91,40.51681]
[1746741379414,6.2130576,160.96,160.91,40.51681]
[1746741379614,6.2130576,160.96,160.92,40.51681]
[1746741379840,6.2130576,160.96,160.9,26.0]
[1746741380020,6.2130576,160.96,160.92,40.51681]
[1746741381957,6.2130576,160.96,160.91,40.51681]
[1746741382529,59.16645886,160.94,160.83,6.4111]
[1746741382730,59.16645886,160.94,160.89,40.51681]
[1746741382934,18.64964886,160.94,160.89,40.51681]
[1746741383132,59.16645886,160.94,160.89,40.51681]
[1746741383537,6.21388181,160.93,160.89,40.51681]
[1746741384241,59.16645886,160.92,160.86,40.51681]
[1746741384450,40.51681,160.91,160.85,40.51681]
[1746741384757,6.21388181,160.93,160.81,1.5025]
[1746741384758,18.64964886,160.9,160.84,66.51681]
[1746741384918,59.16645886,160.9,160.84,66.51681]
[1746741385119,18.64964886,160.92,160.85,40.51681]
[1746741385319,18.64964886,160.9,160.85,40.51681]
[1746741387049,18.64964886,160.9,160.85,54.01789815]
[1746741387226,18.64964886,160.9,160.86,53.9185184]
[1746741387746,6.21542668,160.89,160.86,53.9185184]
[1746741389328,84.71332483,160.89,160.83,54.01789815]
[1746741389528,46.2339934,160.89,160.83,54.01789815]
[1746741390053,6.21619941,160.87,160.83,54.01789815]
[1746741390936,18.64964886,160.84,160.76,1.6497]
[1746741391132,72.66754701,160.84,160.79,54.01789815]
[1746741391335,18.64964886,160.82,160.76,1.6497]
[1746741391543,24.48,160.81,160.76,55.66759815]
[1746741391739,78.49789815,160.81,160.76,55.66759815]
[1746741392043,6.21890547,160.8,160.76,81.66759815]
[1746741392245,6.21890547,160.8,160.76,55.66759815]
[1746741392625,6.21890547,160.8,160.73,6.22152529]
[1746741392626,18.64964886,160.79,160.71,54.01789815]
[1746741392826,54.01789815,160.77,160.71,54.01789815]
[1746741393024,54.01789815,160.77,160.71,80.01789815]
[1746741393244,18.64964886,160.79,160.72,54.01789815]
[1746741393245,54.01789815,160.78,160.72,54.01789815]
[1746741393450,54.01789815,160.78,160.73,54.01789815]
[1746741393661,18.64964886,160.76,160.71,54.01789815]
[1746741393955,18.64964886,160.76,160.7,54.01789815]
[1746741393956,6.22083981,160.75,160.7,54.01789815]
[1746741394170,60.23873796,160.75,160.7,54.01789815]
[1746741394454,60.23873796,160.75,160.62,6.22587473]
[1746741394455,54.01789815,160.73,160.62,6.22587473]
[1746741394641,78.47789815,160.72,160.66,54.01789815]
[1746741394959,78.47789815,160.72,160.63,54.01789815]
[1746741394960,54.01789815,160.69,160.63,54.01789815]
[1746741395132,18.64964886,160.68,160.63,54.01789815]
[1746741395741,72.66754701,160.68,160.62,54.01789815]
[1746741396547,24.52,160.7,160.63,54.01789815]
[1746741396751,24.52,160.7,160.61,6.2260582]
[1746741396752,18.64964886,160.69,160.65,54.01789815]
[1746741397252,18.64964886,160.69,160.61,6.2260582]
[1746741397455,18.64964886,160.69,160.65,54.01789815]
[1746741398052,18.64964886,160.69,160.65,60.24245478]
[1746741398252,18.64964886,160.69,160.65,6.22455663]
[1746741398454,257.42,160.76,160.68,54.01789815]
[1746741398635,24.44,160.75,160.71,54.01789815]
[1746741398845,6.21936914,160.79,160.73,54.01789815]
[1746741399042,24.44,160.79,160.73,54.01789815]
[1746741399230,78.45789815,160.79,160.73,54.01789815]
[1746741399539,18.64964886,160.78,160.73,54.01789815]
[1746741399738,18.64964886,160.78,160.69,27.653]
[1746741399933,18.64964886,160.78,160.73,54.01789815]
[1746741400129,30.65943382,160.79,160.74,54.01789815]
[1746741400334,84.67733197,160.79,160.74,54.01789815]
[1746741401046,84.67733197,160.79,160.73,54.01789815]
[1746741401263,78.88745303,160.78,160.73,26.0]
[1746741401555,54.01789815,160.75,160.7,26.0]
[1746741401930,54.01789815,160.72,160.66,54.01789815]
[1746741402162,18.64964886,160.69,160.64,54.01789815]
[1746741402666,72.66754701,160.69,160.63,1.653]
[1746741402845,18.64964886,160.69,160.64,54.01789815]
[1746741403046,24.44,160.71,160.65,54.01789815]
[1746741403248,18.64964886,160.7,160.65,54.01789815]
[1746741403579,24.87255834,160.7,160.65,54.01789815]
[1746741404056,160.94,160.73,160.65,54.01789815]
[1746741404057,136.4,160.77,160.69,80.01789815]
[1746741404233,136.4,160.77,160.71,54.01789815]
[1746741404234,24.42,160.75,160.71,54.01789815]
[1746741405252,18.64964886,160.76,160.72,54.01789815]
[1746741405438,24.54,160.78,160.75,54.01789815]
[1746741405641,24.54,160.78,160.77,54.01789815]
[1746741405960,24.42,160.8,160.77,54.01789815]
[1746741406636,24.42,160.8,160.73,1.5768]
[1746741406637,18.64964886,160.81,160.76,54.01789815]
[1746741407256,72.66754701,160.81,160.69,1.6612]
[1746741407447,18.64964886,160.78,160.73,54.01789815]
[1746741407831,26.0,160.81,160.73,54.01789815]
[1746741407832,18.64964886,160.8,160.73,54.01789815]
[1746741408030,54.01789815,160.78,160.73,54.01789815]
[1746741408232,54.01789815,160.78,160.72,54.01789815]
[1746741408459,18.64964886,160.74,160.69,1.6612]
[1746741408661,6.22200099,160.72,160.69,1.6612]
[1746741408833,54.01789815,160.7,160.65,54.01789815]
[1746741409033,18.64964886,160.69,160.64,54.01789815]
[1746741409233,72.66754701,160.69,160.63,1.6612]
[1746741409433,72.66754701,160.69,160.63,81.67909815]
[1746741410034,18.64964886,160.65,160.6,54.01789815]
[1746741410244,43.04964886,160.65,160.6,54.01789815]
[1746741410634,43.04964886,160.65,160.61,54.01789815]
[1746741410848,6.2250996,160.64,160.61,54.01789815]
[1746741411251,18.64964886,160.63,160.59,54.01789815]
[1746741411458,18.64964886,160.63,160.59,80.01789815]
[1746741411635,18.64964886,160.63,160.58,54.01789815]
[1746741411834,18.64964886,160.63,160.57,55.56149815]
[1746741412060,72.66754701,160.61,160.55,80.01789815]
[1746741412449,18.64964886,160.59,160.55,80.01789815]
[1746741412863,6.22742558,160.58,160.55,54.01789815]
[1746741413071,6.22742558,160.58,160.52,1.5436]
[1746741413072,18.64964886,160.57,160.52,1.5436]
[1746741413361,43.02964886,160.57,160.52,55.56149815]
[1746741413856,43.02964886,160.57,160.53,54.01789815]
[1746741414358,24.38,160.57,160.56,54.01789815]
[1746741414870,26.0,160.65,160.56,54.01789815]
[1746741414871,43.00964886,160.66,160.59,26.0]
[1746741415075,24.36,160.66,160.64,54.01789815]
[1746741415250,24.38,160.7,160.65,54.01789815]
[1746741415462,24.38,160.71,160.68,54.01789815]
[1746741415772,24.38,160.71,160.7,54.01789815]
[1746741416367,24.38,160.71,160.69,54.01789815]
[1746741417454,24.38,160.71,160.68,54.01789815]
[1746741418348,30.6024649,160.71,160.67,80.01789815]
[1746741419186,30.6024649,160.71,160.63,1.6305]
[1746741419471,84.62036305,160.71,160.66,54.01789815]
[1746741419676,30.6024649,160.71,160.66,54.01789815]
[1746741419879,24.38,160.71,160.67,54.01789815]
[1746741420175,24.38,160.71,160.69,54.01789815]
[1746741420356,24.38,160.71,160.7,54.01789815]
[1746741420677,257.42,160.73,160.7,54.01789815]
[1746741420981,78.39789815,160.77,160.64,144.45539561]
[1746741420982,24.34,160.75,160.72,54.01789815]
[1746741421164,24.34,160.75,160.73,54.01789815]
[1746741422369,24.34,160.75,160.74,54.01789815]
[1746741423549,24.34,160.75,160.74,54.09551974]
[1746741424850,24.34,160.75,160.73,54.09551974]
[1746741425052,24.34,160.75,160.72,26.0]
[1746741425471,24.34,160.75,160.73,54.09551974]
[1746741426281,24.34,160.75,160.74,54.09551974]
[1746741426457,24.34,160.75,160.74,54.09615051]
[1746741426653,24.38,160.77,160.74,54.09615051]
[1746741426854,24.38,160.77,160.76,54.09615051]
[1746741427082,54.09615051,160.81,160.76,54.09615051]
[1746741427260,6.21813207,160.82,160.79,54.09615051]
[1746741427675,60.31428258,160.82,160.78,26.0]
[1746741428280,6.21813207,160.82,160.78,26.0]
[1746741428589,60.31428258,160.82,160.78,26.0]
[1746741430580,239.33803725,160.83,160.8,54.09615051]
[1746741430787,54.09615051,160.85,160.8,80.09615051]
[1746741430979,54.09615051,160.85,160.8,54.09615051]
[1746741431184,54.09615051,160.85,160.8,26.0]
[1746741431374,54.09615051,160.85,160.8,80.09615051]
[1746741432255,26.0,160.82,160.74,6.3002]
[1746741432460,54.09615051,160.83,160.78,54.09615051]
[1746741433788,47.76075602,160.84,160.74,94.82114615]
[1746741433789,54.09615051,160.82,160.77,54.09615051]
[1746741434664,6.21851874,160.81,160.77,54.09615051]
[1746741435489,6.21851874,160.81,160.78,54.09615051]
[1746741436560,15.54339716,160.84,160.79,54.09615051]
[1746741436761,69.63954767,160.84,160.79,54.09615051]
[1746741437390,93.85954767,160.84,160.79,54.09615051]
[1746741437686,24.22,160.84,160.79,54.09615051]
[1746741437880,78.31615051,160.84,160.79,54.09615051]
[1746741438570,6.21774544,160.83,160.8,54.09615051]
[1746741439770,6.21774544,160.83,160.76,32.22035414]
[1746741439967,6.21774544,160.83,160.79,54.09615051]
[1746741440291,6.21774544,160.83,160.8,54.09615051]
[1746741440791,72.74579937,160.81,160.75,26.0]
[1746741441092,54.09615051,160.78,160.73,55.70015051]
[1746741441289,78.27615051,160.78,160.73,55.70015051]
[1746741441594,54.09615051,160.76,160.7,60.42895051]
[1746741441898,54.09615051,160.74,160.69,1.5112]
[1746741442072,54.09615051,160.73,160.69,1.5112]
[1746741442678,6.22200099,160.72,160.69,1.5112]
[1746741442987,6.22200099,160.72,160.69,55.60735051]
[1746741443563,6.22200099,160.72,160.69,1.5112]
[1746741444602,21.77700347,160.72,160.62,7.73707473]
[1746741444804,54.09615051,160.71,160.62,7.73707473]
[1746741444973,24.16,160.7,160.66,54.09615051]
[1746741445574,6.22316261,160.69,160.66,54.09615051]
[1746741446495,6.22316261,160.69,160.63,26.0]
[1746741446678,6.22316261,160.69,160.65,54.09615051]
[1746741447679,6.22316261,160.69,160.66,54.09615051]
[1746741450301,6.22316261,160.69,160.67,54.09615051]
[1746741451788,6.22316261,160.69,160.67,35.69739812]
[1746741453118,6.22316261,160.69,160.66,35.69739812]
[1746741454623,6.22316261,160.69,160.62,90.03697158]
[1746741454791,6.22316261,160.69,160.67,35.69739812]
[1746741455186,21.77369736,160.75,160.68,35.69739812]
[1746741455402,6.22083981,160.75,160.67,26.0]
[1746741455608,6.22083981,160.75,160.73,35.69739812]
[1746741456685,6.22045284,160.76,160.72,35.69739812]
[1746741457215,57.46898308,160.76,160.71,35.69739812]
[1746741457587,57.46898308,160.76,160.7,35.69739812]
[1746741459411,57.46898308,160.76,160.67,1.5256]
[1746741459711,35.69739812,160.75,160.7,35.69739812]
[1746741460105,57.46898308,160.76,160.7,35.69739812]
[1746741461417,35.69739812,160.75,160.7,35.69739812]
[1746741461714,21.77158496,160.76,160.71,35.69739812]
[1746741461920,57.46898308,160.76,160.71,35.69739812]
[1746741462712,21.77158496,160.76,160.71,35.69739812]
[1746741463246,57.46898308,160.76,160.71,35.69739812]
[1746741465015,21.77158496,160.76,160.71,35.69739812]
[1746741465407,57.46898308,160.76,160.71,35.69739812]
[1746741465718,21.77158496,160.76,160.67,1.5256]
[1746741465897,57.46898308,160.76,160.71,35.69739812]
[1746741466805,24.0,160.75,160.71,35.69739812]
[1746741467118,24.0,160.75,160.67,1.5256]
[1746741467326,24.0,160.75,160.71,35.69739812]
[1746741468695,6.22122682,160.74,160.71,35.69739812]
[1746741469694,21.77429388,160.74,160.67,1.5256]
[1746741469909,21.77429388,160.74,160.7,35.69739812]
[1746741470919,57.471692,160.74,160.68,26.0]
[1746741471218,35.69739812,160.72,160.67,37.22299812]
[1746741471802,35.69739812,160.71,160.66,26.0]
[1746741472005,35.69739812,160.7,160.66,26.0]
[1746741472397,35.69739812,160.7,160.63,26.0]
[1746741472596,35.69739812,160.7,160.65,35.69739812]
[1746741472797,35.69739812,160.7,160.61,1.5206]
[1746741472798,35.69739812,160.69,160.61,1.5206]
[1746741473094,18.64964886,160.7,160.61,1.5206]
[1746741473095,35.69739812,160.65,160.61,1.5206]
[1746741473295,24.87358612,160.67,160.58,35.69739812]
[1746741473296,35.69739812,160.64,160.58,35.69739812]
[1746741473921,59.65739812,160.64,160.58,35.69739812]
[1746741474094,59.65739812,160.64,160.59,35.69739812]
[1746741474299,23.96,160.64,160.6,35.69739812]
[1746741474694,23.94,160.65,160.62,35.69739812]
[1746741474900,6.22316261,160.69,160.64,35.69739812]
[1746741475110,6.22316261,160.69,160.66,35.69739812]
[1746741475303,30.14282999,160.7,160.66,35.69739812]
[1746741475908,30.14282999,160.7,160.67,35.69739812]
[1746741476103,23.92,160.7,160.68,35.69739812]
[1746741476521,23.92,160.74,160.69,35.69739812]